fUSD/lending_fUSD_20260514
["ID","MTS","AMOUNT","RATE_DAILY","PERIOD"]
[422236405,1778739914000,-582.14,0.00041203,120]
[422236404,1778739914000,-582.14,0.00041203,120]
[422236399,1778739914000,-282.22408885,0.00041203,120]
[422236400,1778739914000,-582.14,0.00041203,120]
[422236398,1778739914000,-500.0,0.00041203,120]
[422236397,1778739914000,-500.0,0.00041203,120]
[422236394,1778739914000,-3521.9335423,0.00041203,120]
[422236396,1778739914000,-500.0,0.00041203,120]
[422236395,1778739914000,-169.65029841,0.00041203,120]
[422236401,1778739914000,-582.14,0.00041203,120]
[422236420,1778739915000,-582.14,0.00041203,120]
[422236428,1778739915000,-1202.58,0.00041203,120]
[422236426,1778739915000,-1202.58,0.00041203,120]
[422236425,1778739915000,-1006.43612226,0.00041203,30]
[422236423,1778739915000,-582.22296463,0.00041203,120]
[422236424,1778739915000,-900.0,0.00041203,120]
[422236422,1778739915000,-582.14,0.00041203,120]
[422236421,1778739915000,-582.14,0.00041203,120]
[422236411,1778739915000,-582.14,0.00041203,120]
[422236418,1778739915000,-582.14,0.00041203,120]
[422236415,1778739915000,-582.14,0.00041203,120]
[422236414,1778739915000,-582.14,0.00041203,120]
[422236417,1778739915000,-582.14,0.00041203,120]
[422236416,1778739915000,-582.14,0.00041203,120]
[422236413,1778739915000,-582.14,0.00041203,120]
[422236412,1778739915000,-582.14,0.00041203,120]
[422236429,1778739915000,-1202.58,0.00041203,120]
[422236419,1778739915000,-582.14,0.00041203,120]
[422236427,1778739915000,-1202.58,0.00041203,120]
[422236430,1778739915000,-1202.58,0.00041203,120]
[422236449,1778739915000,-1202.61702494,0.00041203,120]
[422236448,1778739915000,-1202.58,0.00041203,120]
[422236447,1778739915000,-1202.58,0.00041203,120]
[422236446,1778739915000,-1202.58,0.00041203,120]
[422236445,1778739915000,-1202.58,0.00041203,120]
[422236444,1778739915000,-1202.58,0.00041203,120]
[422236443,1778739915000,-1202.58,0.00041203,120]
[422236442,1778739915000,-1202.58,0.00041203,120]
[422236440,1778739915000,-1202.58,0.00041203,120]
[422236431,1778739915000,-1202.58,0.00041203,120]
[422236438,1778739915000,-1202.58,0.00041203,120]
[422236439,1778739915000,-1202.58,0.00041203,120]
[422236437,1778739915000,-1202.58,0.00041203,120]
[422236436,1778739915000,-1202.58,0.00041203,120]
[422236435,1778739915000,-1202.58,0.00041203,120]
[422236434,1778739915000,-1202.58,0.00041203,120]
[422236433,1778739915000,-1202.58,0.00041203,120]
[422236432,1778739915000,-1202.58,0.00041203,120]
[422236441,1778739915000,-1202.58,0.00041203,120]
[422236461,1778739916000,-415.89851301,0.00041203,120]
[422236460,1778739916000,-10207.3675412,0.00041203,30]
[422236464,1778739916000,-80000.0,0.00041203,120]
[422236462,1778739916000,-8121.350777,0.00041203,90]
[422236465,1778739916000,-80000.0,0.00041203,120]
[422236458,1778739916000,-500.0,0.00041203,120]
[422236463,1778739916000,-321.8347351,0.00041203,120]
[422236459,1778739916000,-516.41801568,0.00041203,120]
[422236453,1778739916000,-500.0,0.00041203,120]
[422236457,1778739916000,-103240.0,0.00041203,120]
[422236455,1778739916000,-604.11893226,0.00041203,120]
[422236454,1778739916000,-500.0,0.00041203,120]
[422236452,1778739916000,-500.0,0.00041203,120]
[422236450,1778739916000,-500.0,0.00041203,120]
[422236451,1778739916000,-500.0,0.00041203,120]
[422236466,1778739916000,-6245.0,0.00041203,120]
[422236456,1778739916000,-230.69469025,0.00041203,120]
[422236469,1778739916000,-500.0,0.00041203,120]
[422236473,1778739916000,-500.0,0.00041203,120]
[422236468,1778739916000,-500.0,0.00041203,120]
[422236486,1778739916000,-500.0,0.00041203,120]
[422236484,1778739916000,-500.0,0.00041203,120]
[422236485,1778739916000,-500.0,0.00041203,120]
[422236481,1778739916000,-500.0,0.00041203,120]
[422236483,1778739916000,-500.0,0.00041203,120]
[422236467,1778739916000,-157984.4845,0.00041203,60]
[422236480,1778739916000,-500.0,0.00041203,120]
[422236479,1778739916000,-500.0,0.00041203,120]
[422236482,1778739916000,-500.0,0.00041203,120]
[422236476,1778739916000,-500.0,0.00041203,120]
[422236477,1778739916000,-500.0,0.00041203,120]
[422236474,1778739916000,-500.0,0.00041203,120]
[422236475,1778739916000,-500.0,0.00041203,120]
[422236472,1778739916000,-500.0,0.00041203,120]
[422236471,1778739916000,-500.0,0.00041203,120]
[422236470,1778739916000,-500.0,0.00041203,120]
[422236478,1778739916000,-500.0,0.00041203,120]
[422236496,1778739917000,-6665.85,0.00041203,120]
[422236503,1778739917000,-6665.85,0.00041203,120]
[422236501,1778739917000,-6665.85,0.00041203,120]
[422236500,1778739917000,-6665.85,0.00041203,120]
[422236498,1778739917000,-6665.85,0.00041203,120]
[422236499,1778739917000,-6665.85,0.00041203,120]
[422236497,1778739917000,-6665.85,0.00041203,120]
[422236502,1778739917000,-6665.85,0.00041203,120]
[422236493,1778739917000,-6665.85,0.00041203,120]
[422236492,1778739917000,-6665.85,0.00041203,120]
[422236490,1778739917000,-6665.85,0.00041203,120]
[422236491,1778739917000,-6665.85,0.00041203,120]
[422236488,1778739917000,-257.13567596,0.00041203,120]
[422236489,1778739917000,-6665.85,0.00041203,120]
[422236487,1778739917000,-598.9175286,0.00041203,120]
[422236495,1778739917000,-6665.85,0.00041203,120]
[422236504,1778739917000,-6665.85,0.00041203,120]
[422236494,1778739917000,-6665.85,0.00041203,120]
[422236507,1778739917000,-6665.85,0.00041203,120]
[422236505,1778739917000,-6665.85,0.00041203,120]
[422236520,1778739917000,-636.32,0.00041203,120]
[422236521,1778739917000,-636.32,0.00041203,120]
[422236519,1778739917000,-636.32,0.00041203,120]
[422236517,1778739917000,-636.32,0.00041203,120]
[422236518,1778739917000,-636.32,0.00041203,120]
[422236513,1778739917000,-8901.10332804,0.00041203,120]
[422236516,1778739917000,-636.32,0.00041203,120]
[422236522,1778739917000,-636.32,0.00041203,120]
[422236515,1778739917000,-636.32,0.00041203,120]
[422236514,1778739917000,-5100.0,0.00041203,39]
[422236512,1778739917000,-6666.00970079,0.00041203,120]
[422236511,1778739917000,-6665.85,0.00041203,120]
[422236509,1778739917000,-6665.85,0.00041203,120]
[422236510,1778739917000,-6665.85,0.00041203,120]
[422236508,1778739917000,-6665.85,0.00041203,120]
[422236506,1778739917000,-6665.85,0.00041203,120]
[422236523,1778739917000,-636.32,0.00041203,120]
[422236538,1778739918000,-636.3832341,0.00041203,120]
[422236537,1778739918000,-636.32,0.00041203,120]
[422236535,1778739918000,-636.32,0.00041203,120]
[422236536,1778739918000,-636.32,0.00041203,120]
[422236534,1778739918000,-636.32,0.00041203,120]
[422236532,1778739918000,-636.32,0.00041203,120]
[422236533,1778739918000,-636.32,0.00041203,120]
[422236525,1778739918000,-636.32,0.00041203,120]
[422236530,1778739918000,-636.32,0.00041203,120]
[422236529,1778739918000,-636.32,0.00041203,120]
[422236528,1778739918000,-636.32,0.00041203,120]
[422236527,1778739918000,-636.32,0.00041203,120]
[422236524,1778739918000,-636.32,0.00041203,120]
[422236526,1778739918000,-636.32,0.00041203,120]
[422236540,1778739918000,-849.55820553,0.00041203,120]
[422236531,1778739918000,-636.32,0.00041203,120]
[422236542,1778739918000,-5299.43755658,0.00041203,120]
[422236541,1778739918000,-431.97222503,0.00041203,120]
[422236554,1778739918000,-1085.05,0.00041203,120]
[422236539,1778739918000,-3464.77961696,0.00041203,120]
[422236558,1778739918000,-1085.05,0.00041203,120]
[422236557,1778739918000,-1085.05,0.00041203,120]
[422236555,1778739918000,-1085.05,0.00041203,120]
[422236556,1778739918000,-1085.05,0.00041203,120]
[422236553,1778739918000,-1085.05,0.00041203,120]
[422236551,1778739918000,-1085.05,0.00041203,120]
[422236552,1778739918000,-1085.05,0.00041203,120]
[422236548,1778739918000,-153.74898799,0.00041203,30]
[422236547,1778739918000,-96193.74619521,0.00041203,120]
[422236550,1778739918000,-1085.05,0.00041203,120]
[422236546,1778739918000,-503.12167311,0.00041203,120]
[422236545,1778739918000,-169.72,0.00041203,120]
[422236543,1778739918000,-152.88357541,0.00041203,120]
[422236544,1778739918000,-196.42,0.00041203,30]
[422236549,1778739918000,-1085.05,0.00041203,120]
[422236559,1778739918000,-1085.05,0.00041203,120]
[422236574,1778739919000,-687.44374667,0.00041203,120]
[422236571,1778739919000,-1085.05,0.00041203,120]
[422236577,1778739919000,-225765.2,0.00041203,120]
[422236575,1778739919000,-100000.0,0.00041203,30]
[422236573,1778739919000,-316.42,0.00041203,120]
[422236570,1778739919000,-1085.05,0.00041203,120]
[422236572,1778739919000,-1085.10117899,0.00041203,120]
[422236568,1778739919000,-1085.05,0.00041203,120]
[422236560,1778739919000,-1085.05,0.00041203,120]
[422236567,1778739919000,-1085.05,0.00041203,120]
[422236565,1778739919000,-1085.05,0.00041203,120]
[422236566,1778739919000,-1085.05,0.00041203,120]
[422236563,1778739919000,-1085.05,0.00041203,120]
[422236561,1778739919000,-1085.05,0.00041203,120]
[422236562,1778739919000,-1085.05,0.00041203,120]
[422236569,1778739919000,-1085.05,0.00041203,120]
[422236578,1778739919000,-150510.1,0.00041203,30]
[422236564,1778739919000,-1085.05,0.00041203,120]
[422236579,1778739919000,-100000.0,0.00041203,30]
[422236595,1778739919000,-296044.85050249,0.00041203,30]
[422236593,1778739919000,-155606.02699082,0.00041203,30]
[422236594,1778739919000,-272855.87513995,0.00041203,30]
[422236592,1778739919000,-2980.6584298,0.00041203,30]
[422236591,1778739919000,-3598.03059434,0.00041203,30]
[422236590,1778739919000,-30000.0,0.00041203,120]
[422236588,1778739919000,-103645.10077812,0.00041203,30]
[422236576,1778739919000,-4999999.999999,0.00041203,30]
[422236589,1778739919000,-289.0755075,0.00041203,120]
[422236586,1778739919000,-289.07550753,0.00041203,120]
[422236587,1778739919000,-289.07550753,0.00041203,120]
[422236585,1778739919000,-289.07550753,0.00041203,120]
[422236583,1778739919000,-289.07550753,0.00041203,120]
[422236582,1778739919000,-289.07550753,0.00041203,120]
[422236580,1778739919000,-414.95,0.00041203,120]
[422236581,1778739919000,-289.07550753,0.00041203,120]
[422236584,1778739919000,-289.07550753,0.00041203,120]
[422236596,1778739920000,150.0,0.00013488,2]
[422236599,1778739920000,150.0,0.00013488,2]
[422236598,1778739920000,249.66397583,0.00013488,2]
[422236597,1778739920000,574.49,0.0001355,2]
[422236605,1778739921000,150.0,0.00013488,2]
[422236606,1778739921000,150.0,0.00013862,2]
[422236604,1778739921000,150.0,0.00013488,2]
[422236603,1778739921000,150.0,0.00013488,2]
[422236602,1778739921000,150.0,0.00013488,2]
[422236600,1778739921000,248.12623186,0.00013488,2]
[422236601,1778739921000,150.0,0.00013488,2]
[422236607,1778739923000,150.0,0.00013488,2]
[422236613,1778739943000,-101796.96061979,0.00041203,30]
[422236608,1778739943000,-190039.39476479,0.00041203,30]
[422236609,1778739943000,-39289.30129318,0.00041203,30]
[422236611,1778739943000,-19272.45508493,0.00041203,30]
[422236610,1778739943000,-87271.0,0.00041203,30]
[422236614,1778739943000,-44171.64981596,0.00041203,30]
[422236618,1778739943000,-26743.97476372,0.00041203,30]
[422236615,1778739943000,-1161738.0039816,0.00041203,30]
[422236612,1778739943000,-59060.06676798,0.00041203,30]
[422236616,1778739943000,-68588.48675101,0.00041203,30]
[422236620,1778739943000,-173192.62338323,0.00041203,30]
[422236617,1778739943000,-169949.07949511,0.00041203,60]
[422236619,1778739943000,-34405.46123431,0.00041203,30]
[422236638,1778739944000,-572.08,0.00041203,30]
[422236635,1778739944000,-572.08,0.00041203,30]
[422236636,1778739944000,-569.83,0.00041203,30]
[422236634,1778739944000,-569.83,0.00041203,30]
[422236632,1778739944000,-569.83,0.00041203,30]
[422236633,1778739944000,-583.49,0.00041203,30]
[422236631,1778739944000,-572.08,0.00041203,30]
[422236630,1778739944000,-569.83,0.00041203,30]
[422236629,1778739944000,-572.08,0.00041203,30]
[422236627,1778739944000,-2000.0,0.00041203,120]
[422236626,1778739944000,-21670.28623199,0.00041203,30]
[422236624,1778739944000,-104140.48408417,0.00041203,30]
[422236625,1778739944000,-32337.999997,0.00041203,30]
[422236623,1778739944000,-210948.4150885,0.00041203,30]
[422236622,1778739944000,-391750.01194385,0.00041203,30]
[422236621,1778739944000,-57765.48338449,0.00041203,30]
[422236628,1778739944000,-183.27,0.00041203,120]
[422236637,1778739944000,-572.08,0.00041203,30]
[422236650,1778739944000,-393.84,0.00041203,30]
[422236640,1778739944000,-569.83,0.00041203,30]
[422236639,1778739944000,-569.83,0.00041203,30]
[422236657,1778739944000,-393.84,0.00041203,30]
[422236656,1778739944000,-640.24,0.00041203,30]
[422236654,1778739944000,-569.83,0.00041203,30]
[422236655,1778739944000,-479.41,0.00041203,30]
[422236653,1778739944000,-572.08,0.00041203,30]
[422236651,1778739944000,-640.24,0.00041203,30]
[422236648,1778739944000,-189.79,0.00041203,30]
[422236652,1778739944000,-569.06,0.00041203,30]
[422236646,1778739944000,-495.32,0.00041203,30]
[422236647,1778739944000,-566.46,0.00041203,30]
[422236645,1778739944000,-280.9,0.00041203,30]
[422236642,1778739944000,-188.73,0.00041203,30]
[422236644,1778739944000,-652.26,0.00041203,30]
[422236643,1778739944000,-572.08,0.00041203,30]
[422236641,1778739944000,-569.83,0.00041203,30]
[422236649,1778739944000,-542.08,0.00041203,30]
[422236665,1778739945000,-640.24,0.00041203,30]
[422236675,1778739945000,-391.12,0.00041203,30]
[422236673,1778739945000,-393.84,0.00041203,30]
[422236670,1778739945000,-415.85,0.00041203,30]
[422236671,1778739945000,-6000.0,0.00041203,120]
[422236674,1778739945000,-586.03,0.00041203,30]
[422236669,1778739945000,-569.83,0.00041203,30]
[422236668,1778739945000,-661.11,0.00041203,30]
[422236658,1778739945000,-640.24,0.00041203,30]
[422236666,1778739945000,-242103.98971153,0.00041203,30]
[422236664,1778739945000,-393.84,0.00041203,30]
[422236663,1778739945000,-569.83,0.00041203,30]
[422236662,1778739945000,-572.1,0.00041203,30]
[422236661,1778739945000,-569.83,0.00041203,30]
[422236659,1778739945000,-393.84,0.00041203,30]
[422236660,1778739945000,-572.08,0.00041203,30]
[422236667,1778739945000,-588.29,0.00041203,30]
[422236676,1778739945000,-569.83,0.00041203,30]
[422236672,1778739945000,-572.08,0.00041203,30]
[422236679,1778739945000,-572.08,0.00041203,30]
[422236677,1778739945000,-572.08,0.00041203,30]
[422236696,1778739945000,-572.08,0.00041203,30]
[422236694,1778739945000,-434.44,0.00041203,30]
[422236693,1778739945000,-572.08,0.00041203,30]
[422236690,1778739945000,-572.08,0.00041203,30]
[422236692,1778739945000,-216.09368042,0.00041203,120]
[422236691,1778739945000,-569.83,0.00041203,30]
[422236689,1778739945000,-569.83,0.00041203,30]
[422236688,1778739945000,-572.08,0.00041203,30]
[422236695,1778739945000,-150.94858769,0.00041203,120]
[422236685,1778739945000,-572.08,0.00041203,30]
[422236686,1778739945000,-569.84,0.00041203,30]
[422236684,1778739945000,-572.08,0.00041203,30]
[422236681,1778739945000,-569.83,0.00041203,30]
[422236682,1778739945000,-200.53076528,0.00041203,120]
[422236683,1778739945000,-569.83,0.00041203,30]
[422236678,1778739945000,-500.0,0.00041203,120]
[422236680,1778739945000,-393.84,0.00041203,30]
[422236687,1778739945000,-50000.0,0.00041203,57]
[422236711,1778739946000,-10000.0,0.00041203,120]
[422236708,1778739946000,-10000.0,0.00041203,120]
[422236709,1778739946000,-10000.0,0.00041203,120]
[422236710,1778739946000,-10000.0,0.00041203,120]
[422236707,1778739946000,-10000.0,0.00041203,120]
[422236705,1778739946000,-342.77060003,0.00041203,120]
[422236704,1778739946000,-9269.28,0.00041203,30]
[422236701,1778739946000,-572.08,0.00041203,30]
[422236703,1778739946000,-173.2202771,0.00041203,120]
[422236702,1778739946000,-569.83,0.00041203,30]
[422236700,1778739946000,-568.2,0.00041203,30]
[422236699,1778739946000,-221.37,0.00041203,30]
[422236698,1778739946000,-769.93228943,0.00041203,120]
[422236697,1778739946000,-582.45,0.00041203,30]
[422236712,1778739946000,-152.0,0.00041203,120]
[422236706,1778739946000,-228.666687,0.00041203,120]
[422236713,1778739946000,-152.0,0.00041203,120]
[422236716,1778739946000,-152.0,0.00041203,120]
[422236715,1778739946000,-152.0,0.00041203,120]
[422236732,1778739946000,-152.0,0.00041203,120]
[422236714,1778739946000,-152.0,0.00041203,120]
[422236731,1778739946000,-152.0,0.00041203,120]
[422236729,1778739946000,-152.0,0.00041203,120]
[422236726,1778739946000,-152.0,0.00041203,120]
[422236728,1778739946000,-572.08,0.00041203,30]
[422236727,1778739946000,-152.0,0.00041203,120]
[422236725,1778739946000,-152.0,0.00041203,120]
[422236730,1778739946000,-569.83,0.00041203,30]
[422236723,1778739946000,-152.0,0.00041203,120]
[422236722,1778739946000,-152.0,0.00041203,120]
[422236720,1778739946000,-152.0,0.00041203,120]
[422236721,1778739946000,-152.0,0.00041203,120]
[422236719,1778739946000,-152.0,0.00041203,120]
[422236718,1778739946000,-152.0,0.00041203,120]
[422236717,1778739946000,-152.0,0.00041203,120]
[422236724,1778739946000,-152.0,0.00041203,120]
[422236747,1778739947000,-151.0,0.00041203,120]
[422236746,1778739947000,-151.0,0.00041203,120]
[422236744,1778739947000,-151.0,0.00041203,120]
[422236743,1778739947000,-151.0,0.00041203,120]
[422236745,1778739947000,-151.0,0.00041203,120]
[422236742,1778739947000,-151.0,0.00041203,120]
[422236741,1778739947000,-151.0,0.00041203,120]
[422236739,1778739947000,-151.0,0.00041203,120]
[422236737,1778739947000,-151.0,0.00041203,120]
[422236738,1778739947000,-151.0,0.00041203,120]
[422236735,1778739947000,-214.40763,0.00041203,120]
[422236734,1778739947000,-301.6310815,0.00041203,120]
[422236733,1778739947000,-152.0,0.00041203,120]
[422236750,1778739947000,-151.0,0.00041203,120]
[422236740,1778739947000,-151.0,0.00041203,120]
[422236748,1778739947000,-151.0,0.00041203,120]
[422236736,1778739947000,-277.09000975,0.00041203,120]
[422236751,1778739947000,-151.0,0.00041203,120]
[422236749,1778739947000,-151.0,0.00041203,120]
[422236766,1778739947000,-559.19188,0.00041203,120]
[422236763,1778739947000,-200.0,0.00041203,120]
[422236767,1778739947000,-200.0,0.00041203,120]
[422236764,1778739947000,-500.0,0.00041203,120]
[422236762,1778739947000,-539.24,0.00041203,120]
[422236759,1778739947000,-200.0,0.00041203,120]
[422236760,1778739947000,-168.4661141,0.00041203,120]
[422236765,1778739947000,-151.0,0.00041203,120]
[422236758,1778739947000,-520.0,0.00041203,120]
[422236756,1778739947000,-151.0,0.00041203,120]
[422236757,1778739947000,-500.0,0.00041203,120]
[422236755,1778739947000,-228.78924863,0.00041203,120]
[422236752,1778739947000,-151.0,0.00041203,120]
[422236754,1778739947000,-200.0,0.00041203,120]
[422236753,1778739947000,-151.0,0.00041203,120]
[422236761,1778739947000,-151.0,0.00041203,120]
[422236783,1778739948000,-6888.0,0.00041203,120]
[422236780,1778739948000,-162.380719,0.00041203,120]
[422236779,1778739948000,-623.58710448,0.00041203,120]
[422236781,1778739948000,-151.0,0.00041203,120]
[422236778,1778739948000,-537.6845,0.00041203,120]
[422236777,1778739948000,-156.587,0.00041203,120]
[422236775,1778739948000,-537.6845,0.00041203,120]
[422236773,1778739948000,-572.08,0.00041203,30]
[422236772,1778739948000,-200.0,0.00041203,120]
[422236774,1778739948000,-151.0,0.00041203,120]
[422236771,1778739948000,-579.88197956,0.00041203,120]
[422236770,1778739948000,-511.82903289,0.00041203,120]
[422236768,1778739948000,-518.5,0.00041203,120]
[422236784,1778739948000,-156.587,0.00041203,120]
[422236776,1778739948000,-601.3376128,0.00041203,120]
[422236785,1778739948000,-168.3888056,0.00041203,120]
[422236769,1778739948000,-569.83,0.00041203,30]
[422236786,1778739948000,-500.0,0.00041203,120]
[422236782,1778739948000,-623.58710448,0.00041203,120]
[422236802,1778739948000,-8260.13072239,0.00041203,120]
[422236801,1778739948000,-500.0,0.00041203,120]
[422236800,1778739948000,-500.0,0.00041203,120]
[422236799,1778739948000,-7965.41053268,0.00041203,120]
[422236797,1778739948000,-500.0,0.00041203,120]
[422236795,1778739948000,-500.0,0.00041203,120]
[422236796,1778739948000,-7681.20591386,0.00041203,120]
[422236798,1778739948000,-500.0,0.00041203,120]
[422236794,1778739948000,-500.0,0.00041203,120]
[422236792,1778739948000,-500.0,0.00041203,120]
[422236791,1778739948000,-7407.141672,0.00041203,120]
[422236789,1778739948000,-174.61919141,0.00041203,120]
[422236790,1778739948000,-500.0,0.00041203,120]
[422236788,1778739948000,-156.587,0.00041203,120]
[422236787,1778739948000,-7142.856,0.00041203,120]
[422236793,1778739948000,-174.61919141,0.00041203,120]
[422236812,1778739949000,-156.587,0.00041203,120]
[422236817,1778739949000,-156.587,0.00041203,120]
[422236816,1778739949000,-500.0,0.00041203,120]
[422236815,1778739949000,-1068.11,0.00041203,120]
[422236814,1778739949000,-9211.34798985,0.00041203,120]
[422236810,1778739949000,-1030.0,0.00041203,120]
[422236813,1778739949000,-500.0,0.00041203,120]
[422236804,1778739949000,-500.0,0.00041203,120]
[422236809,1778739949000,-8882.6885148,0.00041203,120]
[422236808,1778739949000,-500.0,0.00041203,120]
[422236806,1778739949000,-151.0,0.00041203,120]
[422236807,1778739949000,-500.0,0.00041203,120]
[422236805,1778739949000,-8565.75555911,0.00041203,120]
[422236803,1778739949000,-500.0,0.00041203,120]
[422236819,1778739949000,-9552.16786547,0.00041203,120]
[422236811,1778739949000,-500.0,0.00041203,120]
[422236818,1778739949000,-500.0,0.00041203,120]
[422236823,1778739949000,-9905.5980765,0.00041203,120]
[422236821,1778739949000,-500.0,0.00041203,120]
[422236836,1778739949000,-572.08,0.00041203,30]
[422236820,1778739949000,-1107.63007,0.00041203,120]
[422236835,1778739949000,-500.0,0.00041203,120]
[422236834,1778739949000,-500.0,0.00041203,120]
[422236833,1778739949000,-10652.17309792,0.00041203,120]
[422236832,1778739949000,-1235.18214925,0.00041203,120]
[422236831,1778739949000,-500.0,0.00041203,120]
[422236837,1778739949000,-500.0,0.00041203,120]
[422236830,1778739949000,-500.0,0.00041203,120]
[422236828,1778739949000,-1191.11104075,0.00041203,120]
[422236825,1778739949000,-500.0,0.00041203,120]
[422236827,1778739949000,-438.54373652,0.00041203,30]
[422236826,1778739949000,-500.0,0.00041203,120]
[422236824,1778739949000,-1148.61238259,0.00041203,120]
[422236822,1778739949000,-500.0,0.00041203,120]
[422236829,1778739949000,-10272.10520533,0.00041203,120]
[422236847,1778739950000,-1536.04360649,0.00041203,120]
[422236846,1778739950000,-1481.23780761,0.00041203,120]
[422236845,1778739950000,-1428.38747117,0.00041203,120]
[422236848,1778739950000,-1592.87721993,0.00041203,120]
[422236843,1778739950000,-1328.27659266,0.00041203,120]
[422236841,1778739950000,-500.0,0.00041203,120]
[422236842,1778739950000,-500.0,0.00041203,120]
[422236839,1778739950000,-500.0,0.00041203,120]
[422236838,1778739950000,-569.86,0.00041203,30]
[422236840,1778739950000,-1280.88388878,0.00041203,120]
[422236844,1778739950000,-1377.42282659,0.00041203,120]
[422236850,1778739950000,-620.0,0.00041203,120]
[422236855,1778739950000,-1555.5,0.00041203,30]
[422236851,1778739950000,-227.31219486,0.00041203,120]
[422236849,1778739950000,-500.0,0.00041203,120]
[422236862,1778739950000,-176.29,0.00041203,120]
[422236861,1778739950000,-1672.7364795,0.00041203,30]
[422236859,1778739950000,-572.08,0.00041203,30]
[422236860,1778739950000,-569.83,0.00041203,30]
[422236863,1778739950000,-620.96653947,0.00041203,120]
[422236856,1778739950000,-205.06607636,0.00041203,120]
[422236857,1778739950000,-170.0,0.00041203,120]
[422236853,1778739950000,-1500.0,0.00041203,30]
[422236854,1778739950000,-642.94,0.00041203,120]
[422236852,1778739950000,-642.94,0.00041203,120]
[422236858,1778739950000,-1613.0535,0.00041203,30]
[422236870,1778739951000,189.57680101,0.00041203,120]
[422236864,1778739951000,1734.62772924,0.00041203,30]
[422236865,1778739951000,9711.33049787,0.00041203,30]
[422236866,1778739951000,23508.1345117,0.00041203,30]
[422236867,1778739951000,80223.15070819,0.00041203,30]
[422236868,1778739951000,182.81273,0.00041203,120]
[422236869,1778739951000,1798.80895522,0.00041203,30]
[422236871,1778739951000,196.59114265,0.00041203,120]
[422236877,1778739951000,219.23011724,0.00041203,120]
[422236873,1778739951000,203.86501493,0.00041203,120]
[422236874,1778739951000,1934.38338737,0.00041203,30]
[422236875,1778739951000,211.40802048,0.00041203,120]
[422236876,1778739951000,2005.9555727,0.00041203,30]
[422236878,1778739951000,2080.17592889,0.00041203,30]
[422236879,1778739951000,227.34163157,0.00041203,120]
[422236880,1778739951000,2157.14243826,0.00041203,30]
[422236881,1778739951000,235.75327194,0.00041203,120]
[422236872,1778739951000,1865.36488657,0.00041203,30]
[422236887,1778739952000,2494.55939289,0.00041203,30]
[422236882,1778739952000,2236.95670848,0.00041203,30]
[422236883,1778739952000,2319.72410669,0.00041203,30]
[422236885,1778739952000,2405.55389864,0.00041203,30]
[422236886,1778739952000,152.0,0.00041203,120]
[422236888,1778739952000,152.0,0.00041203,120]
[422236884,1778739952000,152.0,0.00041203,120]
[422236890,1778739952000,152.0,0.00041203,120]
[422236891,1778739952000,2682.57183977,0.00041203,30]
[422236892,1778739952000,152.0,0.00041203,120]
[422236893,1778739952000,2781.82699784,0.00041203,30]
[422236896,1778739952000,152.0,0.00041203,120]
[422236894,1778739952000,152.0,0.00041203,120]
[422236895,1778739952000,2884.75459676,0.00041203,30]
[422236889,1778739952000,2586.85809042,0.00041203,30]
[422236898,1778739953000,152.0,0.00041203,120]
[422236897,1778739953000,2884.75459676,0.00041203,30]
[422236899,1778739954000,152.0,0.00041203,120]
[422236900,1778739956000,2831.14653195,0.00041203,120]